bitfinex/quotes_BTCUSD_20250225
["timestamp","ask_amount","ask_price","bid_price","bid_amount"]
[1740456075026,0.07596064,92470.0,92461.0,0.00090365]
[1740456075620,0.07596064,92470.0,92459.0,0.0008493]
[1740456075621,0.00920905,92469.0,92459.0,0.0008493]
[1740456075969,0.05438861,92468.0,92459.0,0.0008493]
[1740456076177,0.00148026,92467.0,92459.0,0.0008493]
[1740456076377,0.04041639,92466.0,92459.0,0.0008493]
[1740456076533,0.00148026,92465.0,92459.0,0.0008493]
[1740456076736,0.00934862,92465.0,92459.0,0.0008493]
[1740456076937,0.05402148,92464.0,92461.0,0.00090365]
[1740456077153,0.0541656,92470.0,92461.0,0.00090365]
[1740456077355,0.05495658,92466.0,92461.0,0.00090365]
[1740456077554,0.05495658,92466.0,92459.0,0.0018493]
[1740456077555,0.05495658,92466.0,92459.0,0.0008493]
[1740456077739,0.00148026,92465.0,92459.0,0.0008493]
[1740456077936,0.05402148,92464.0,92461.0,0.00090365]
[1740456078150,0.05455776,92462.0,92459.0,0.0008493]
[1740456078348,0.05495658,92466.0,92459.0,0.0008493]
[1740456078552,0.04126078,92465.0,92459.0,0.0008493]
[1740456079195,0.00786836,92464.0,92459.0,0.0018493]
[1740456079407,0.00148026,92463.0,92459.0,0.0018493]
[1740456079860,0.38105776,92462.0,92459.0,0.0018493]
[1740456080042,0.00148026,92461.0,92443.0,0.0497]
[1740456080305,0.38701467,92460.0,92443.0,0.0327238]
[1740456080533,0.38701467,92460.0,92458.0,0.00090365]
[1740456080736,0.33436836,92460.0,92458.0,0.00090365]
[1740456081026,0.3265,92460.0,92459.0,0.00090365]
[1740456081717,0.34347613,92460.0,92459.0,0.00090365]
[1740456081927,0.01697613,92460.0,92459.0,0.07680365]
[1740456082363,4.83712713,92460.0,92459.0,0.07680365]
[1740456082603,4.84412713,92460.0,92459.0,0.07680365]
[1740456082818,4.83712713,92460.0,92459.0,0.07680365]
[1740456083019,4.83712713,92460.0,92459.0,0.08448402]
[1740456083246,4.84412713,92460.0,92459.0,0.07780365]
[1740456083449,4.84412713,92460.0,92459.0,0.12610365]
[1740456083676,4.827151,92460.0,92459.0,0.12610365]
[1740456084412,4.820151,92460.0,92459.0,0.12510365]
[1740456084610,4.820151,92474.0,92459.0,0.12510365]
[1740456084945,0.00790173,92473.0,92469.0,0.00090365]
[1740456085169,4.87461124,92472.0,92454.0,0.0795]
[1740456085370,4.87461124,92472.0,92467.0,0.00090365]
[1740456085371,4.820151,92471.0,92467.0,0.00090365]
[1740456085570,4.9361217,92471.0,92467.0,0.00090365]
[1740456085885,0.00609635,92460.0,92459.0,0.001]
[1740456086047,4.820151,92460.0,92449.0,0.0469]
[1740456086264,4.820151,92462.0,92454.0,0.001]
[1740456086461,0.10806897,92461.0,92454.0,0.001]
[1740456086672,4.820151,92460.0,92443.0,0.08231417]
[1740456086892,4.820151,92462.0,92443.0,0.0808]
[1740456087984,4.820151,92462.0,92444.0,0.00151417]
[1740456088149,4.820151,92462.0,92443.0,0.0808]
[1740456088358,0.00148026,92461.0,92443.0,0.0808]
[1740456088583,4.92821997,92460.0,92443.0,0.0808]
[1740456088780,4.820151,92459.0,92443.0,0.0808]
[1740456089059,0.05487203,92463.0,92444.0,0.00151422]
[1740456089259,4.820151,92462.0,92444.0,0.00151422]
[1740456090025,4.827151,92462.0,92444.0,0.00151422]
[1740456090281,4.820151,92461.0,92444.0,0.00151422]
[1740456090517,4.820151,92462.0,92444.0,0.00151422]
[1740456090747,4.827151,92462.0,92444.0,0.00251422]
[1740456090958,4.54256107,92461.0,92444.0,0.00251422]
[1740456091164,4.542562,92460.0,92444.0,0.00251422]
[1740456091367,4.542562,92459.0,92444.0,0.00251422]
[1740456091569,4.542562,92458.0,92444.0,0.00251422]
[1740456091749,4.542562,92457.0,92444.0,0.00251422]
[1740456091945,4.542562,92456.0,92444.0,0.00251422]
[1740456092154,4.304125,92455.0,92444.0,0.00251422]
[1740456092386,4.304125,92454.0,92444.0,0.00251422]
[1740456092568,4.304125,92453.0,92444.0,0.00251422]
[1740456092772,4.304125,92452.0,92444.0,0.00151422]
[1740456093007,0.05487203,92463.0,92444.0,0.00151422]
[1740456093008,4.304125,92451.0,92444.0,0.001]
[1740456093179,4.304125,92450.0,92444.0,0.00251426]
[1740456093408,0.05487203,92463.0,92443.0,0.0816493]
[1740456093638,0.005,92454.0,92444.0,0.01464058]
[1740456094341,0.005,92451.0,92444.0,0.00151422]
[1740456094596,0.01697625,92452.0,92444.0,0.00151422]
[1740456096500,0.01697625,92452.0,92443.0,0.0816493]
[1740456096731,0.01697625,92452.0,92445.0,0.00151416]
[1740456096910,0.02197625,92452.0,92445.0,0.00151416]
[1740456097119,0.01697625,92452.0,92445.0,0.00151416]
[1740456097559,0.02097625,92452.0,92446.0,0.00983051]
[1740456097762,0.02097625,92452.0,92447.0,0.0795]
[1740456097964,0.02097625,92452.0,92449.0,0.0806]
[1740456098141,0.02097625,92452.0,92448.0,0.04711405]
[1740456098142,0.02097625,92452.0,92451.0,0.0806]
[1740456098789,0.004,92452.0,92451.0,0.0806]
[1740456098939,0.004,92452.0,92451.0,0.09420304]
[1740456099141,0.009,92452.0,92451.0,0.0806]
[1740456099306,0.0016986,92467.0,92451.0,0.0806]
[1740456099504,0.0016986,92467.0,92452.0,0.00151399]
[1740456099740,0.00248601,92452.0,92451.0,0.0806]
[1740456099936,0.00248601,92452.0,92451.0,0.09401047]
[1740456100170,0.00248601,92452.0,92451.0,0.14141034]
[1740456100374,0.0016986,92467.0,92451.0,0.06081034]
[1740456100586,0.0016986,92467.0,92452.0,0.0777]
[1740456100844,0.0086986,92467.0,92453.0,0.0784903]
[1740456101319,0.0016988,92460.0,92453.0,0.0784903]
[1740456101572,0.0016988,92460.0,92453.0,0.0777]
[1740456101803,0.00806371,92459.0,92453.0,0.0777]
[1740456102291,0.00806371,92459.0,92452.0,0.0787]
[1740456102525,0.00806371,92459.0,92452.0,0.0777]
[1740456102775,0.01622454,92459.0,92445.0,0.0777]
[1740456103017,0.004,92452.0,92444.0,0.0008494]
[1740456103468,0.00806371,92451.0,92444.0,0.0008494]
[1740456105464,0.00816083,92459.0,92444.0,0.0008494]
[1740456105715,0.0016988,92460.0,92445.0,0.00079121]
[1740456105918,0.004,92451.0,92445.0,0.00079121]
[1740456106713,0.01697581,92457.0,92444.0,0.0008494]
[1740456106918,0.01697581,92457.0,92446.0,0.00079123]
[1740456107358,0.01697581,92457.0,92445.0,0.001]
[1740456107562,0.004,92451.0,92445.0,0.001]
[1740456109104,0.04070466,92456.0,92444.0,0.0008494]
[1740456109282,0.01697581,92457.0,92444.0,0.0008494]
[1740456109505,0.02297581,92457.0,92446.0,0.001]
[1740456109618,0.02297581,92457.0,92444.0,0.0008494]
[1740456110040,0.004,92451.0,92444.0,0.0008494]
[1740456110471,0.10343798,92450.0,92421.0,0.0789]
[1740456110668,0.00189297,92449.0,92421.0,0.0789]
[1740456110868,0.0055071,92448.0,92421.0,0.0789]
[1740456111125,0.00189308,92447.0,92421.0,0.0789]
[1740456111524,0.05440579,92445.0,92416.0,0.0458]
[1740456111851,0.05447422,92443.0,92416.0,0.0458]
[1740456112251,0.00189322,92442.0,92416.0,0.0458]
[1740456112459,0.05632584,92442.0,92416.0,0.04592938]
[1740456112700,0.079,92441.0,92416.0,0.00012938]
[1740456113113,0.00189326,92440.0,92416.0,0.00012938]
[1740456113326,0.02040627,92439.0,92416.0,0.00012938]
[1740456113497,0.00189329,92438.0,92416.0,0.00012938]
[1740456113896,0.05416398,92437.0,92416.0,0.00012938]
[1740456114098,0.00997687,92436.0,92416.0,0.00012938]
[1740456114422,0.1208,92432.0,92416.0,0.00012938]
[1740456114582,0.10996237,92431.0,92416.0,0.00012938]
[1740456114779,0.00808347,92431.0,92416.0,0.00012938]
[1740456115284,0.00808347,92431.0,92412.0,0.0008488]
[1740456115285,0.0823,92428.0,92412.0,0.0008488]
[1740456115589,4.30601853,92427.0,92391.0,0.0764]
[1740456115746,0.00189366,92426.0,92391.0,0.0764]
[1740456115904,0.06283486,92425.0,92391.0,0.0764]
[1740456116115,0.00189368,92424.0,92391.0,0.0764]
[1740456116345,0.00189368,92424.0,92392.0,0.00079311]
[1740456116545,0.00189368,92424.0,92391.0,0.0764]
[1740456116546,0.00808845,92423.0,92393.0,0.00086311]
[1740456117188,0.00189368,92422.0,92393.0,0.00086311]
[1740456117410,0.1809603,92420.0,92393.0,7e-05]
[1740456117612,0.05498106,92418.0,92393.0,7e-05]
[1740456117847,0.05421826,92416.0,92393.0,7e-05]
[1740456118051,0.00189377,92415.0,92393.0,7e-05]
[1740456118244,0.05498106,92418.0,92393.0,7e-05]
[1740456118456,0.05421826,92416.0,92393.0,0.0008633]
[1740456118675,0.10806897,92415.0,92393.0,0.0008633]
[1740456118860,0.05421826,92416.0,92393.0,7e-05]
[1740456119666,0.0548967,92417.0,92393.0,0.0008633]
[1740456120662,0.00189378,92416.0,92393.0,7e-05]
[1740456120870,0.05421826,92416.0,92393.0,0.00086334]
[1740456121075,0.05419124,92419.0,92393.0,0.0008632]
[1740456121286,0.08996684,92419.0,92393.0,7e-05]
[1740456121500,0.05419124,92419.0,92393.0,7e-05]
[1740456121912,0.3265,92421.0,92404.0,0.0802]
[1740456122115,0.3265,92421.0,92405.0,0.00079296]
[1740456122506,0.05465332,92424.0,92393.0,7e-05]
[1740456122774,0.0826,92425.0,92393.0,7e-05]
[1740456122775,0.0080909,92420.0,92393.0,7e-05]
[1740456122971,0.05419124,92419.0,92393.0,0.00129473]
[1740456123176,0.05419124,92419.0,92393.0,0.00050154]
[1740456123382,0.0548967,92417.0,92393.0,0.00050154]
[1740456123794,0.0080909,92416.0,92393.0,0.00050154]
[1740456123917,0.06050972,92415.0,92393.0,0.00050154]
[1740456124129,0.00189378,92414.0,92393.0,0.00050154]
[1740456124338,0.00998468,92414.0,92393.0,0.00050154]
[1740456124736,0.05425932,92413.0,92393.0,0.00050154]
[1740456124944,0.05468501,92411.0,92393.0,0.00050154]
[1740456125138,0.10630967,92446.0,92393.0,0.00050154]
[1740456125139,0.05484513,92409.0,92393.0,0.00050154]
[1740456125361,0.05484513,92409.0,92403.0,0.0008494]
[1740456125362,0.00189384,92408.0,92403.0,0.0008494]
[1740456125559,0.01478553,92386.0,92381.0,0.0763]
[1740456126515,0.01478553,92386.0,92368.0,0.0822]
[1740456126854,0.01478553,92386.0,92351.0,0.0008492]
[1740456126855,0.05437492,92385.0,92360.0,0.082]
[1740456127037,0.05464035,92383.0,92355.0,0.0471]
[1740456127230,0.05464035,92383.0,92356.0,0.00079466]
[1740456127442,0.00809248,92382.0,92356.0,0.00079466]
[1740456127653,0.05470013,92381.0,92356.0,0.00079466]
[1740456128090,0.00809248,92380.0,92356.0,0.00079466]
[1740456128305,0.05677903,92379.0,92355.0,0.0471]
[1740456128513,0.05677903,92379.0,92351.0,0.0008492]
[1740456128514,0.00648715,92378.0,92351.0,0.0008492]
[1740456128729,0.0777,92377.0,92335.0,0.0827]
[1740456128948,0.08290596,92377.0,92335.0,0.0827]
[1740456129162,0.00809248,92376.0,92335.0,0.0827]
[1740456129350,0.01471642,92375.0,92336.0,0.037256]
[1740456129554,0.01471642,92375.0,92335.0,0.08282922]
[1740456129773,0.08630967,92367.0,92335.0,0.00012922]
[1740456129937,4.304125,92366.0,92335.0,0.00012922]
[1740456130141,4.33559754,92366.0,92335.0,0.00012922]
[1740456130360,0.80236897,92365.0,92335.0,0.00012922]
[1740456130619,0.3534,92364.0,92335.0,0.00012922]
[1740456130769,0.38487254,92364.0,92335.0,0.00012922]
[1740456130967,1.4324,92363.0,92335.0,0.00012922]
[1740456131261,0.02843489,92362.0,92335.0,0.00012922]
[1740456131574,1.45676897,92361.0,92335.0,0.00012922]
[1740456131794,0.077,92359.0,92335.0,0.00012922]
[1740456132112,0.08630967,92357.0,92335.0,0.00012922]
[1740456132314,4.304125,92356.0,92335.0,0.00012922]
[1740456132640,4.32725049,92356.0,92335.0,0.00012922]
[1740456132865,0.10806897,92355.0,92335.0,0.00012922]
[1740456133070,0.077,92359.0,92335.0,0.00012922]
[1740456133694,0.08630967,92357.0,92335.0,0.00012922]
[1740456133891,4.304125,92356.0,92335.0,0.00012922]
[1740456134215,0.0053094,92355.0,92335.0,0.00012922]
[1740456134376,4.304125,92354.0,92335.0,0.00012922]
[1740456134586,0.10806897,92353.0,92335.0,0.00012922]
[1740456134748,4.304125,92352.0,92335.0,0.00012922]
[1740456135176,0.0053094,92351.0,92335.0,0.00012922]
[1740456135379,1.0193,92351.0,92335.0,0.00012922]
[1740456135581,1.0107,92352.0,92335.0,0.00012922]
[1740456135796,0.0053094,92350.0,92335.0,0.00012922]
[1740456136140,3.864,92349.0,92335.0,0.00012922]
[1740456136350,0.00027452,92350.0,92335.0,0.00012922]
[1740456136563,0.00558392,92348.0,92335.0,0.00012922]
[1740456137029,0.00558392,92348.0,92335.0,0.00097902]
[1740456137233,4.353925,92347.0,92335.0,0.00097902]
[1740456137402,4.41219397,92346.0,92335.0,0.00097902]
[1740456137609,4.304125,92345.0,92335.0,0.00097902]
[1740456138018,0.08630967,92343.0,92335.0,0.00097902]
[1740456138218,4.304125,92342.0,92335.0,0.00097902]
[1740456138954,1.5241,92341.0,92335.0,0.00097902]
[1740456139168,0.0762,92344.0,92335.0,0.00097902]
[1740456139169,0.00558392,92342.0,92335.0,0.00097902]
[1740456139345,0.6399,92341.0,92335.0,0.00097902]
[1740456139545,4.2464,92343.0,92335.0,0.00097902]
[1740456139749,0.00558392,92340.0,92335.0,0.00097902]
[1740456141406,0.00014143,92346.0,92335.0,0.00097902]
[1740456141610,0.18597211,92356.0,92335.0,0.00097902]
[1740456141808,0.517,92355.0,92335.0,0.00097902]
[1740456142059,0.247,92354.0,92323.0,0.04834967]
[1740456142274,0.00014143,92354.0,92323.0,0.00047906]
[1740456142425,1.0112,92353.0,92323.0,0.00047906]
[1740456142759,0.4828,92353.0,92323.0,0.00047906]
[1740456142954,0.7899,92355.0,92324.0,0.00796791]
[1740456143235,0.7899,92355.0,92323.0,0.00047906]
[1740456143236,4.304125,92355.0,92323.0,0.00047906]
[1740456143412,0.00578167,92354.0,92323.0,0.00047906]
[1740456143721,4.32441491,92353.0,92323.0,0.00047906]
[1740456143865,4.304125,92352.0,92324.0,0.08]
[1740456144068,2.3974,92351.0,92324.0,0.08]
[1740456144336,0.10806897,92350.0,92323.0,0.00047906]
[1740456144470,4.433125,92349.0,92323.0,0.00047906]
[1740456144683,4.304125,92348.0,92323.0,0.00047906]
[1740456144942,0.0169994,92344.0,92323.0,0.00047906]
[1740456145082,4.304125,92343.0,92323.0,0.00047906]
[1740456145295,4.29621191,92346.0,92323.0,0.00047906]
[1740456145492,0.02028991,92345.0,92323.0,0.00047906]
[1740456145764,4.31640776,92345.0,92323.0,0.00047906]
[1740456145963,2.8161,92344.0,92323.0,0.00047906]
[1740456146187,4.296212,92343.0,92323.0,0.00047906]
[1740456146350,4.296212,92342.0,92323.0,0.00047906]
[1740456146693,0.08630967,92336.0,92323.0,0.00047906]
[1740456146818,4.296212,92335.0,92323.0,0.00047906]
[1740456147022,4.296212,92334.0,92323.0,0.00047906]
[1740456147220,4.32126829,92333.0,92323.0,0.00047906]
[1740456147419,0.16370967,92326.0,92323.0,0.00047906]
[1740456147626,4.30112532,92325.0,92323.0,0.00047906]
[1740456147850,4.296212,92324.0,92323.0,0.00047906]
[1740456148098,4.300564,92324.0,92323.0,0.00047906]
[1740456148318,4.40923799,92324.0,92323.0,0.00047906]
[1740456148529,4.43437683,92324.0,92289.0,0.03101324]
[1740456148698,4.296212,92323.0,92289.0,0.03144406]
[1740456148922,4.296212,92322.0,92289.0,0.03144406]
[1740456149131,0.08630967,92316.0,92289.0,0.00043082]
[1740456149298,4.296212,92315.0,92289.0,0.00043082]
[1740456149539,0.078,92313.0,92289.0,0.00043082]
[1740456149661,0.08630967,92306.0,92289.0,0.00043082]
[1740456149863,4.296212,92305.0,92289.0,0.00043082]
[1740456150108,4.40428097,92304.0,92289.0,0.00043082]
[1740456150314,4.296212,92303.0,92289.0,0.00043082]
[1740456150488,4.296212,92302.0,92289.0,0.00043082]
[1740456150693,4.296212,92301.0,92289.0,0.00043082]
[1740456150926,4.296212,92300.0,92289.0,0.00043082]
[1740456151124,2.9399,92299.0,92289.0,0.00043082]
[1740456151467,3.1362,92298.0,92289.0,0.00043082]
[1740456151698,3.13704315,92298.0,92289.0,0.00043082]
[1740456151868,0.00084315,92298.0,92289.0,0.00043082]
[1740456152103,3.4804,92297.0,92279.0,0.01295583]
[1740456152309,2.4534,92296.0,92279.0,0.01295583]
[1740456152430,2.671,92295.0,92279.0,0.01295583]
[1740456152630,2.65,92297.0,92279.0,0.01295583]
[1740456152876,0.10806897,92296.0,92279.0,0.01295583]
[1740456153077,4.098,92295.0,92279.0,0.01295583]
[1740456153255,0.01700713,92292.0,92279.0,0.01295583]
[1740456153651,0.00084315,92291.0,92279.0,0.01295583]
[1740456153899,4.296212,92290.0,92279.0,0.01295583]
[1740456154119,0.08630967,92289.0,92279.0,0.01295583]
[1740456154289,0.15,92287.0,92279.0,0.01295583]
[1740456154496,0.15,92285.0,92279.0,0.01295583]
[1740456154701,0.15,92283.0,92253.0,0.0458]
[1740456154861,0.15,92281.0,92253.0,0.0458]
[1740456155057,0.15,92279.0,92253.0,0.01315872]
[1740456155312,0.15,92279.0,92233.0,0.01064]
[1740456155313,3.1014134,92278.0,92233.0,0.01064]
[1740456155481,0.0848134,92278.0,92233.0,0.01064]
[1740456155682,0.15,92279.0,92233.0,0.01064]
[1740456155921,0.15,92277.0,92233.0,0.01064]
[1740456156875,0.00799058,92254.0,92233.0,0.01064]
[1740456157077,0.00799058,92254.0,92234.0,0.5375]
[1740456157298,0.00799058,92254.0,92235.0,0.01064]
[1740456157499,0.00799058,92254.0,92235.0,0.06553893]
[1740456157611,0.00799058,92254.0,92236.0,0.0794]
[1740456158024,0.00842034,92254.0,92236.0,0.0794]
[1740456158233,0.00842034,92254.0,92237.0,0.0475]
[1740456159561,0.00842034,92254.0,92239.0,0.0466]
[1740456159764,0.00842034,92254.0,92241.0,0.0466]
[1740456161182,0.00842034,92254.0,92242.0,0.0762]
[1740456161605,0.078,92303.0,92242.0,0.0762]
[1740456161606,0.00667553,92303.0,92242.0,0.0762]
[1740456161828,0.01701269,92276.0,92244.0,0.0762]
[1740456162051,0.01701269,92276.0,92245.0,0.61250238]
[1740456162186,0.01245982,92277.0,92247.0,0.0762]
[1740456162390,0.00667553,92303.0,92247.0,0.0762]
[1740456162588,0.7766,92302.0,92249.0,0.075]
[1740456162835,0.7082,92301.0,92249.0,0.075]
[1740456163063,0.7082,92301.0,92248.0,0.90510238]
[1740456163064,0.032647,92305.0,92253.0,0.1262]
[1740456163240,0.05402367,92319.0,92255.0,0.0788]
[1740456163458,4.296212,92315.0,92255.0,0.0788]
[1740456163660,0.00817451,92257.0,92255.0,0.0788]
[1740456163864,0.15283331,92314.0,92230.0,0.0208493]
[1740456163865,0.08630967,92282.0,92233.0,0.1228507]
[1740456164087,0.00115166,92257.0,92233.0,0.00321497]
[1740456164295,0.00042976,92257.0,92233.0,0.00321497]
[1740456164501,0.0007219,92256.0,92233.0,0.00236567]
[1740456164708,0.00042976,92257.0,92233.0,0.00236567]
[1740456164912,0.00833178,92234.0,92233.0,0.00236567]
[1740456166572,0.00833178,92234.0,92210.0,0.02]
[1740456166777,0.00833178,92234.0,92216.0,0.01068]
[1740456166985,0.00833178,92234.0,92227.0,0.0464]
[1740456167613,0.00042976,92257.0,92227.0,0.0464]
[1740456167830,0.00042976,92257.0,92237.0,0.0463]
[1740456168061,0.00042976,92257.0,92248.0,0.0463]
[1740456168269,0.00042976,92257.0,92249.0,0.56228335]
[1740456168469,0.032644,92314.0,92249.0,0.56228335]
[1740456168470,0.0817,92320.0,92255.0,0.0617]
[1740456168673,0.0817,92320.0,92271.0,0.08630967]
[1740456168875,0.047,92325.0,92272.0,0.53630238]
[1740456169081,0.047,92325.0,92273.0,0.01072]
[1740456169286,0.0245661,92319.0,92274.0,0.03010239]
[1740456169500,0.00831138,92276.0,92273.0,0.01072]
[1740456169886,0.00831138,92276.0,92272.0,0.0798]
[1740456170118,0.00831138,92276.0,92256.0,0.49221343]
[1740456170320,0.00831138,92276.0,92255.0,0.00012937]
[1740456170525,0.00831138,92276.0,92256.0,0.05030628]
[1740456170932,0.00831138,92276.0,92255.0,0.00012937]
[1740456172032,0.00831138,92276.0,92251.0,0.08535134]
[1740456172266,0.00844025,92276.0,92261.0,0.08630967]
[1740456173239,0.00844025,92276.0,92262.0,0.0787]
[1740456173434,0.00844025,92276.0,92263.0,0.49221343]
[1740456173636,0.00844025,92276.0,92265.0,0.0459]
[1740456173837,0.00844025,92276.0,92271.0,0.08630967]
[1740456174140,0.00844025,92276.0,92272.0,0.81461343]
[1740456174542,0.00012887,92276.0,92272.0,0.81461343]
[1740456175197,0.00012887,92276.0,92273.0,0.81461343]
[1740456175360,0.00012887,92276.0,92274.0,0.81461343]
[1740456175565,0.00012887,92276.0,92275.0,0.0764]
[1740456175792,0.00012887,92276.0,92275.0,0.02887371]
[1740456178881,0.00012887,92276.0,92275.0,0.84348714]
[1740456179077,0.00012887,92276.0,92275.0,0.82529343]
[1740456179276,0.00012887,92276.0,92275.0,0.81461343]
[1740456180508,0.00012887,92276.0,92275.0,0.3224]
[1740456180976,0.00012887,92276.0,92275.0,0.28915001]
[1740456181170,0.00012887,92276.0,92275.0,0.25651483]
[1740456181366,0.00012887,92276.0,92275.0,0.22387965]
[1740456181546,0.00012887,92276.0,92275.0,0.19124447]
[1740456181973,0.00012887,92276.0,92275.0,0.15860929]
[1740456182180,0.00012887,92276.0,92275.0,0.12597411]
[1740456182381,0.00012887,92276.0,92275.0,0.09333893]
[1740456183191,0.00012887,92276.0,92266.0,0.49221343]
[1740456183401,0.00012887,92276.0,92255.0,0.01068]
[1740456183608,0.0797,92275.0,92256.0,0.00079874]
[1740456184705,0.0797,92275.0,92249.0,0.00079875]
[1740456184905,0.0797,92275.0,92250.0,0.3224]
[1740456185133,0.0797,92275.0,92251.0,0.03418662]
[1740456185734,0.00813105,92267.0,92251.0,0.00079874]
[1740456186363,0.00813105,92267.0,92251.0,0.08630967]
[1740456186563,0.00012887,92276.0,92251.0,0.08630967]
[1740456186764,0.00012887,92276.0,92261.0,0.08630967]
[1740456187011,0.00012887,92276.0,92263.0,0.0794]
[1740456187209,0.00012887,92276.0,92264.0,0.0222285]
[1740456187443,0.00012887,92276.0,92274.0,0.08630967]
[1740456187644,0.00012887,92276.0,92275.0,0.3224]
[1740456188050,0.00012887,92276.0,92275.0,0.81461343]
[1740456189098,0.00012887,92276.0,92275.0,0.86011343]
[1740456189306,0.00182747,92276.0,92275.0,0.98062082]
[1740456189872,0.00182747,92276.0,92275.0,0.93601343]
[1740456190041,0.00182747,92276.0,92275.0,0.94677343]
[1740456190878,0.00182747,92276.0,92275.0,0.98677343]
[1740456191238,0.0774,92325.0,92275.0,0.98677343]
[1740456191239,0.1265,92344.0,92297.0,0.02]
[1740456191359,0.1265,92344.0,92314.0,0.08630967]
[1740456191559,0.00183074,92327.0,92326.0,0.08630967]
[1740456191982,0.00183074,92327.0,92326.0,0.08601815]
[1740456192407,0.01442372,92327.0,92326.0,0.90063148]
[1740456192577,0.01442372,92327.0,92326.0,0.89983627]
[1740456192802,0.00183074,92327.0,92326.0,0.89983627]
[1740456193184,0.00183074,92327.0,92326.0,0.94903627]
[1740456194347,0.08602833,92373.0,92333.0,0.02]
[1740456194533,0.00212874,92351.0,92345.0,0.08630967]
[1740456194733,0.01470049,92351.0,92346.0,0.0094254]
[1740456194932,0.01470049,92351.0,92346.0,2.686e-05]
[1740456195254,0.01470049,92351.0,92347.0,0.00079438]
[1740456195454,0.01470049,92351.0,92348.0,0.01084]
[1740456195781,0.01470049,92351.0,92349.0,0.00079462]
[1740456196002,0.01470049,92351.0,92348.0,0.01084]
[1740456196003,0.01470049,92351.0,92350.0,0.00979712]
[1740456196517,0.01912043,92351.0,92350.0,0.52201055]
[1740456196727,0.01912043,92351.0,92350.0,0.89101055]
[1740456196926,0.00212874,92351.0,92350.0,0.91101055]
[1740456197471,0.00212874,92351.0,92350.0,0.92185055]
[1740456197672,0.00212874,92351.0,92350.0,0.88185055]
[1740456197873,0.00212874,92351.0,92350.0,0.87205343]
[1740456198075,0.00212874,92351.0,92350.0,0.81461343]
[1740456198308,0.00212874,92351.0,92350.0,0.33328]
[1740456199152,0.00212874,92351.0,92350.0,0.33332]
[1740456199314,0.00212874,92351.0,92350.0,0.3224]
[1740456200327,0.00212874,92351.0,92350.0,0.355732]
[1740456200828,0.00212874,92351.0,92350.0,0.3224]
[1740456202838,0.00212874,92351.0,92347.0,0.01092]
[1740456203047,0.00212874,92351.0,92334.0,0.49221343]
[1740456203387,0.00212874,92351.0,92335.0,0.01092]
[1740456203905,0.00212874,92351.0,92336.0,0.00079522]
[1740456204719,0.00212874,92351.0,92336.0,0.01171522]
[1740456205398,0.00212874,92351.0,92334.0,0.33332]
[1740456205641,0.00212874,92351.0,92334.0,0.3224]
[1740456206279,0.00212874,92351.0,92335.0,0.0341274]
[1740456206937,0.01412777,92377.0,92335.0,0.0341274]
[1740456207136,0.00189483,92376.0,92335.0,0.033332]
[1740456207462,0.00012943,92377.0,92335.0,0.033332]
[1740456207657,0.00012943,92377.0,92334.0,0.0117154]
[1740456207994,0.00800219,92337.0,92335.0,0.0007954]
[1740456208204,0.01551936,92377.0,92335.0,0.0007954]
[1740456208415,0.00189471,92376.0,92335.0,0.0007954]
[1740456208603,0.00189465,92395.0,92336.0,0.49221343]
[1740456208792,0.00189448,92389.0,92337.0,0.00079471]
[1740456209002,0.00189448,92389.0,92337.0,0.01175471]
[1740456209205,0.00799724,92351.0,92337.0,0.01175471]
[1740456209445,0.00799724,92351.0,92338.0,0.81461343]
[1740456209642,0.00189448,92389.0,92339.0,0.00079479]
[1740456209795,0.00189448,92389.0,92339.0,0.49300822]
[1740456210063,0.1288,92388.0,92340.0,0.81540814]
[1740456210196,0.1288,92388.0,92340.0,0.81461343]
[1740456210392,0.15,92387.0,92341.0,0.493008]
[1740456210615,0.00812279,92360.0,92342.0,0.81461343]
[1740456210862,0.1288,92388.0,92346.0,0.08630967]
[1740456211078,0.0805,92388.0,92347.0,0.00079426]
[1740456211305,0.0805,92388.0,92360.0,0.08630967]
[1740456211511,0.0805,92388.0,92361.0,0.00079407]
[1740456211656,0.00796301,92368.0,92348.0,0.49300773]
[1740456211863,0.00796301,92368.0,92349.0,0.81461343]
[1740456212074,0.00796301,92368.0,92350.0,0.00079427]
[1740456212273,0.00012946,92388.0,92350.0,0.00079427]
[1740456212506,0.00012946,92388.0,92356.0,0.08630967]
[1740456212706,0.00012946,92388.0,92357.0,0.00950443]
[1740456212958,0.00816355,92374.0,92358.0,0.81461343]
[1740456213169,0.00816355,92374.0,92366.0,0.08630967]
[1740456213427,0.00012946,92388.0,92367.0,0.00079358]
[1740456214212,0.00012946,92388.0,92378.0,0.08630967]
[1740456214426,0.00182686,92388.0,92379.0,0.82403757]
[1740456214628,0.00182686,92388.0,92379.0,0.8232444]
[1740456215575,0.00182686,92388.0,92379.0,0.81461343]
[1740456216070,0.00834525,92394.0,92379.0,0.81461343]
[1740456216348,0.00834525,92394.0,92379.0,0.3224]
[1740456217058,0.09114525,92394.0,92379.0,0.30541215]
[1740456218094,0.00834525,92394.0,92372.0,0.01104]
[1740456218393,0.00834525,92394.0,92373.0,0.0007938]
[1740456219067,0.00834525,92394.0,92374.0,0.30541215]
[1740456219267,0.00834525,92394.0,92375.0,0.00079363]
[1740456219473,0.00834525,92394.0,92376.0,0.30541215]
[1740456219675,0.00834525,92394.0,92377.0,0.49300677]
[1740456219890,0.00834525,92394.0,92377.0,0.49221343]
[1740456220194,0.00834525,92394.0,92378.0,0.79762558]
[1740456220334,0.00834525,92394.0,92379.0,0.00079326]
[1740456220544,0.00834525,92394.0,92380.0,0.88393525]
[1740456220763,0.01725603,92408.0,92381.0,0.79841878]
[1740456221012,0.01725603,92408.0,92382.0,0.49221343]
[1740456221149,0.01725603,92408.0,92383.0,0.000793]
[1740456221562,0.00796552,92397.0,92384.0,0.79762558]
[1740456222000,0.00796552,92397.0,92385.0,0.00079326]
[1740456222379,0.00796552,92397.0,92384.0,0.79762558]
[1740456222763,0.00796552,92397.0,92385.0,0.00079324]
[1740456223145,0.01725603,92408.0,92386.0,0.0768]
[1740456223380,0.01725603,92408.0,92387.0,0.49221343]
[1740456223585,0.01725603,92408.0,92388.0,0.00079295]
[1740456223784,0.00818094,92403.0,92384.0,0.30541215]
[1740456223936,0.00818094,92403.0,92385.0,0.00079325]
[1740456224521,0.00818094,92403.0,92385.0,0.00079327]
[1740456224733,0.00818094,92403.0,92384.0,0.30541215]
[1740456226254,0.00818094,92403.0,92385.0,0.01104]
[1740456227290,0.00818094,92403.0,92384.0,0.30541215]
[1740456229754,0.00818094,92403.0,92373.0,0.30541215]
[1740456229755,0.08019388,92402.0,92373.0,0.30541215]
[1740456229962,0.08019388,92402.0,92383.0,0.01104]